[Event "11th LCC FIDE Open 2019"]
[Site "London"]
[Date "2019.12.05"]
[Round "9.1"]
[White "Praggnanandhaa R"]
[Black "Grover, Sahaj"]
[Result "1/2-1/2"]
[ECO "A04"]
[WhiteElo "2586"]
[BlackElo "2508"]
[Annotator "ChessBase"]
[PlyCount "36"]
[EventDate "2019.11.29"]
[EventType "swiss"]
[EventCountry "ENG"]
[SourceTitle "playchess.com"]
[Source "ChessBase"]
[SourceQuality "1"]
[TimeControl "40/5400+30:1800+30"]

1. Nf3 {[%emt 0:00:00]} c5 {[%emt 0:00:12]} 2. g3 {[%emt 0:00:26]} Nc6 {[%emt 0:00:47]} 3. Bg2 {[%emt 0:00:16]} g6 {[%emt 0:00:08]} 4. c3 {[%emt 0:01:56]} e5 {[%emt 0:00:56]} 5. e4 {[%emt 0:00:26]} Bg7 {[%emt 0:00:06]} 6. O-O {[%emt 0:03:19]} Nge7 {[%emt 0:00:21]} 7. d3 {[%emt 0:01:22]} O-O {[%emt 0:00:29]} 8. a3 {[%emt 0:07:37]} h6 {[%emt 0:09:01]} 9. b4 {[%emt 0:04:40]} d6 {[%emt 0:00:51]} 10. Nbd2 {[%emt 0:17:53]} Be6 {[%emt 0:06:33]} 11. Re1 {[%emt 0:09:10]} b5 {[%emt 0:10:48]} 12. bxc5 {[%emt 0:20:09]} dxc5 {[%emt 0:00:08]} 13. Qc2 {[%emt 0:04:21]} Qd6 {[%emt 0:07:27]} 14. a4 {[%emt 0:01:29]} b4 {[%emt 0:08:38]} 15. Nc4 {[%emt 0:05:41]} Bxc4 {[%emt 0:16:42]} 16. dxc4 {[%emt 0:00:09]} Qe6 {[%emt 0:00:03]} 17. Be3 {[%emt 0:03:27]} Qxc4 {[%emt 0:03:18]} 18. Rec1 {[%emt 0:01:03]} Rfc8 {[%emt 0:03:53]} 1/2-1/2

[Event "11th LCC FIDE Open 2019"]
[Site "London"]
[Date "2019.12.05"]
[Round "9.2"]
[White "Petrov, Martin"]
[Black "Smirnov, Anton"]
[Result "1/2-1/2"]
[ECO "C07"]
[WhiteElo "2497"]
[BlackElo "2573"]
[Annotator "ChessBase"]
[PlyCount "39"]
[EventDate "2019.11.29"]
[EventType "swiss"]
[EventCountry "ENG"]
[SourceTitle "playchess.com"]
[Source "ChessBase"]
[SourceQuality "1"]
[TimeControl "40/5400+30:1800+30"]

1. e4 {[%emt 0:00:00]} e6 {[%emt 0:00:00]} 2. d4 {[%emt 0:00:00]} d5 {[%emt 0:00:00]} 3. Nd2 {[%emt 0:00:11]} c5 {[%emt 0:00:00]} 4. exd5 {[%emt 0:00:34]} Qxd5 {[%emt 0:00:00]} 5. Ngf3 {[%emt 0:02:26]} cxd4 {[%emt 0:00:00]} 6. Bc4 {[%emt 0:00:06]} Qd7 {[%emt 0:00:00]} 7. O-O {[%emt 0:00:38]} Nc6 {[%emt 0:00:12]} 8. Nb3 {[%emt 0:00:10]} Nf6 {[%emt 0:00:04]} 9. Qe2 {[%emt 0:02:28]} a6 {[%emt 0:00:06]} 10. a4 {[%emt 0:00:04]} Bd6 {[%emt 0:00:05]} 11. Rd1 {[%emt 0:00:03]} e5 {[%emt 0:00:12]} 12. Nbxd4 {[%emt 0:00:07]} Nxd4 {[%emt 0:00:05]} 13. Rxd4 {[%emt 0:00:05]} Qe7 {[%emt 0:00:53]} 14. Rxd6 {[%emt 0:00:10]} Qxd6 {[%emt 0:00:06]} 15. b3 {[%emt 0:00:05]} Be6 {[%emt 0:00:06]} 16. Ba3 {[%emt 0:08:21]} Bxc4 {[%emt 0:00:08]} 17. Qxc4 {[%emt 0:01:52]} Qc6 {[%emt 0:00:06]} 18. Nxe5 {[%emt 0:12:45]} Qxc4 {[%emt 0:00:08]} 19. Nxc4 {[%emt 0:00:02]} b5 {[%emt 0:00:27]} 20. Re1+ {[%emt 0:10:56]} 1/2-1/2

[Event "11th LCC FIDE Open 2019"]
[Site "London"]
[Date "2019.12.05"]
[Round "9.6"]
[White "Percivaldi, Martin"]
[Black "Song, Raymond"]
[Result "1-0"]
[ECO "E92"]
[WhiteElo "2384"]
[BlackElo "2468"]
[Annotator "ChessBase"]
[PlyCount "67"]
[EventDate "2019.11.29"]
[EventType "swiss"]
[EventCountry "ENG"]
[SourceTitle "playchess.com"]
[Source "ChessBase"]
[SourceQuality "1"]
[TimeControl "40/5400+30:1800+30"]

1. c4 {[%emt 0:00:00]} g6 {[%emt 0:00:00]} 2. Nf3 {[%emt 0:00:15]} Bg7 {[%emt 0:00:00]} 3. e4 {[%emt 0:00:27]} d6 {[%emt 0:00:11]} 4. d4 {[%emt 0:00:26]} Nf6 {[%emt 0:00:06]} 5. Nc3 {[%emt 0:00:15]} O-O {[%emt 0:00:11]} 6. Be2 {[%emt 0:01:41]} e5 {[%emt 0:00:06]} 7. d5 {[%emt 0:00:17]} a5 {[%emt 0:00:13]} 8. Bg5 {[%emt 0:00:44]} h6 {[%emt 0:01:09]} 9. Be3 {[%emt 0:00:19]} Ng4 {[%emt 0:06:52]} 10. Bd2 {[%emt 0:00:26]} f5 {[%emt 0:00:08]} 11. h3 {[%emt 0:00:44]} Nf6 {[%emt 0:01:39]} 12. exf5 {[%emt 0:00:12]} gxf5 {[%emt 0:00:29]} 13. Qc1 {[%emt 0:00:09]} f4 {[%emt 0:03:39]} 14. g3 {[%emt 0:00:24]} e4 {[%emt 0:01:45]} 15. Nh4 {[%emt 0:00:12]} e3 {[%emt 0:02:18]} 16. fxe3 {[%emt 0:00:00]} fxg3 17. Ng6 {[%emt 0:00:24]} g2 {[%emt 0:01:42]} 18. Rg1 {[%emt 0:00:31]} Bxh3 {[%emt 0:00:06]} 19. Qc2 {[%emt 0:06:19]} Na6 {[%emt 0:03:53]} 20. Nf4 {[%emt 0:03:37]} Qd7 {[%emt 0:00:00]} 21. Nxh3 Qxh3 {[%emt 0:00:00]} 22. O-O-O {[%emt 0:04:17]} Kf7 {[%emt 0:00:04]} 23. Ne4 {[%emt 0:10:20]} Nb4 {[%emt 0:03:21]} 24. Bxb4 {[%emt 0:01:37]} axb4 {[%emt 0:02:21]} 25. Nxf6 {[%emt 0:06:24]} Bxf6 {[%emt 0:15:41]} 26. Qh7+ {[%emt 0:12:46]} Bg7 {[%emt 0:00:14]} 27. Bd3 {[%emt 0:05:26]} Qg4 {[%emt 0:06:52]} 28. Rd2 {[%emt 0:03:14]} b3 {[%emt 0:18:11]} 29. a3 {[%emt 0:13:43]} Ke8 {[%emt 0:04:34]} 30. Rdxg2 {[%emt 0:02:46]} Qf3 {[%emt 0:00:48]} 31. Rxg7 {[%emt 0:01:37]} Qxe3+ {[%emt 0:01:38]} 32. Kb1 {[%emt 0:00:40]} Ra4 {[%emt 0:00:08]} 33. Rg8 {[%emt 0:01:12]} Rxg8 {[%emt 0:00:05]} 34. Rxg8# {[%emt 0:00:06]} 1-0

[Event "11th LCC FIDE Open 2019"]
[Site "London"]
[Date "2019.12.05"]
[Round "9.7"]
[White "Vaishali R"]
[Black "Cherniaev, Alexander"]
[Result "1/2-1/2"]
[ECO "A45"]
[WhiteElo "2376"]
[BlackElo "2428"]
[Annotator "RC"]
[PlyCount "101"]
[EventDate "2019.11.29"]
[EventType "swiss"]
[EventCountry "ENG"]
[SourceTitle "playchess.com"]
[Source "ChessBase"]
[SourceQuality "1"]
[TimeControl "40/5400+30:1800+30"]

1. d4 {[%emt 0:00:01]} Nf6 {[%emt 0:02:29]} 2. Bg5 {[%emt 0:00:12]} Ne4 {[%emt 0:00:17]} 3. h4 {[%emt 0:00:15]} c5 {[%emt 0:00:05]} 4. d5 {[%emt 0:00:07]} Qb6 {[%emt 0:01:17]} 5. Nd2 {[%emt 0:00:35]} h6 {[%emt 0:00:25]} 6. Bf4 {[%emt 0:07:05]} Qxb2 {[%emt 0:00:06]} 7. Nxe4 {[%emt 0:00:57]} Qb4+ {[%emt 0:00:06]} 8. Qd2 {[%emt 0:00:19]} Qxe4 {[%emt 0:00:09]} 9. f3 {[%emt 0:03:20]} Qd4 {[%emt 0:03:07]} 10. Qxd4 {[%emt 0:12:50]} cxd4 {[%emt 0:00:08]} 11. Rd1 {[%emt 0:00:05]} d6 {[%emt 0:20:22]} 12. Rxd4 {[%emt 0:00:49]} g6 {[%emt 0:00:26]} 13. e4 {[%emt 0:06:40]} Bg7 {[%emt 0:00:23]} 14. Rd1 {[%emt 0:02:49]} h5 {[%emt 0:04:18]} 15. Bd3 {[%emt 0:05:01]} Nd7 {[%emt 0:00:57]} 16. Ne2 {[%emt 0:01:58]} Nc5 {[%emt 0:00:16]} 17. Be3 {[%emt 0:02:04]} Na4 {[%emt 0:11:48]} 18. Rb1 {[%emt 0:15:55]} b6 {[%emt 0:01:51]} 19. Bb5+ {[%emt 0:09:24]} Bd7 {[%emt 0:00:08]} 20. Bxa4 {[%emt 0:00:19]} Bxa4 {[%emt 0:00:07]} 21. c4 {[%emt 0:00:03]} O-O {[%emt 0:01:48]} 22. Kd2 {[%emt 0:00:52]} Rfc8 {[%emt 0:00:15]} 23. Rhc1 {[%emt 0:00:52]} Bd7 {[%emt 0:07:57]} 24. Bd4 {[%emt 0:03:06]} Rc7 {[%emt 0:06:43]} 25. Rc3 {[%emt 0:03:29]} Rac8 {[%emt 0:00:21]} 26. Rbc1 {[%emt 0:01:26]} e5 {[%emt 0:07:58]} 27. Be3 {[%emt 0:02:36]} Kh7 {[%emt 0:00:50]} 28. Kd3 {[%emt 0:05:40]} Bh6 {[%emt 0:00:11]} 29. Bxh6 {[%emt 0:07:01]} Kxh6 {[%emt 0:00:08]} 30. Ke3 {[%emt 0:00:08]} f5 {[%emt 0:02:59]} 31. exf5 {[%emt 0:00:43]} gxf5 {[%emt 0:00:25]} 32. f4 {[%emt 0:00:34]} Rc5 {[%emt 0:04:10]} 33. R1c2 {[%emt 0:02:28]} Ra5 {[%emt 0:00:22]} 34. g3 {[%emt 0:02:05]} Kg6 {[%emt 0:00:26]} 35. Nc1 {[%emt 0:01:17]} Kf6 {[%emt 0:04:31]} 36. Nd3 {[%emt 0:01:57]} Rg8 {[%emt 0:07:02]} 37. Kf2 {[%emt 0:00:25]} Ba4 {[%emt 0:00:39]} 38. Rb2 {[%emt 0:02:07]} Rc8 {[%emt 0:04:31]} 39. Nb4 {[%emt 0:01:10]} Rac5 {[%emt 0:04:04]} 40. Ra3 {[%emt 0:00:36]} Ra5 {[%emt 0:02:58]} 41. Rc3 {[%emt 0:01:17]} Rac5 {[%emt 0:00:44]} 42. Ra3 {[%emt 0:00:25]} Rxc4 {[%emt 0:03:11]} 43. Rxa4 {[%emt 0:02:15]} a5 {[%emt 0:00:01]} 44. fxe5+ {[%emt 0:02:05]} dxe5 {[%emt 0:00:12]} 45. d6 {[%emt 0:04:28]} Ke6 {[%emt 0:04:59]} 46. Nd5 {[%emt 0:04:58]} Rxa4 {[%emt 0:03:23]} 47. Nxb6 {[%emt 0:00:07]} Rcc4 {[%emt 0:01:57]} 48. d7 {[%emt 0:03:40]} Ke7 {[%emt 0:00:01]} 49. Nxc4 {[%emt 0:01:36]} Rxc4 {[%emt 0:00:01]} 50. Rb5 {[%emt 0:00:10]} Re4 {[%emt 0:00:41]} 51. Rd5 {[%emt 0:02:10]} 1/2-1/2

[Event "11th LCC FIDE Open 2019"]
[Site "London"]
[Date "2019.12.05"]
[Round "9.10"]
[White "Flear, Glenn C"]
[Black "Bates, Richard A"]
[Result "1/2-1/2"]
[ECO "E12"]
[WhiteElo "2463"]
[BlackElo "2342"]
[Annotator "ChessBase"]
[PlyCount "58"]
[EventDate "2019.11.29"]
[EventType "swiss"]
[EventCountry "ENG"]
[SourceTitle "playchess.com"]
[Source "ChessBase"]
[SourceQuality "1"]
[TimeControl "40/5400+30:1800+30"]

1. d4 {[%emt 0:00:00]} Nf6 {[%emt 0:00:09]} 2. c4 {[%emt 0:00:00]} e6 {[%emt 0:03:28]} 3. Nf3 {[%emt 0:00:00]} b6 {[%emt 0:03:11]} 4. Bf4 {[%emt 0:03:26]} Bb7 {[%emt 0:03:44]} 5. e3 {[%emt 0:00:27]} g6 {[%emt 0:01:09]} 6. Nc3 {[%emt 0:02:42]} Bg7 {[%emt 0:00:12]} 7. Bd3 {[%emt 0:02:31]} O-O {[%emt 0:01:08]} 8. O-O {[%emt 0:01:19]} d6 {[%emt 0:02:03]} 9. e4 {[%emt 0:12:11]} Nbd7 {[%emt 0:03:09]} 10. Re1 {[%emt 0:02:10]} h6 {[%emt 0:05:07]} 11. h3 {[%emt 0:05:38]} e5 {[%emt 0:03:28]} 12. dxe5 {[%emt 0:08:31]} Nh5 {[%emt 0:04:47]} 13. Be3 {[%emt 0:00:40]} dxe5 {[%emt 0:01:45]} 14. b4 {[%emt 0:03:48]} Nf4 {[%emt 0:07:32]} 15. Bf1 {[%emt 0:00:42]} a5 {[%emt 0:04:56]} 16. a3 {[%emt 0:04:41]} Ne6 {[%emt 0:05:49]} 17. Qd2 {[%emt 0:15:55]} axb4 {[%emt 0:00:17]} 18. axb4 {[%emt 0:00:00]} Rxa1 {[%emt 0:10:48]} 19. Rxa1 {[%emt 0:00:00]} Kh7 {[%emt 0:09:04]} 20. Rd1 {[%emt 0:00:00]} Nb8 {[%emt 0:00:50]} 21. Qxd8 {[%emt 0:00:00]} Rxd8 {[%emt 0:00:14]} 22. Rxd8 {[%emt 0:00:21]} Nxd8 {[%emt 0:00:08]} 23. Nd5 {[%emt 0:01:43]} Ne6 {[%emt 0:01:32]} 24. b5 {[%emt 0:01:25]} Nd7 {[%emt 0:01:42]} 25. g3 {[%emt 0:02:31]} Bf8 {[%emt 0:07:54]} 26. h4 {[%emt 0:01:44]} Bc5 {[%emt 0:04:16]} 27. Bxc5 {[%emt 0:11:28]} Nexc5 {[%emt 0:01:39]} 28. Bh3 {[%emt 0:02:54]} Bxd5 {[%emt 0:00:44]} 29. exd5 {[%emt 0:03:34]} Kg7 {[%emt 0:01:03]} 1/2-1/2

[Event "11th LCC FIDE Open 2019"]
[Site "London"]
[Date "2019.12.05"]
[Round "9.11"]
[White "Zujev, Oleg"]
[Black "Hebden, Mark L"]
[Result "0-1"]
[ECO "E73"]
[WhiteElo "2316"]
[BlackElo "2436"]
[Annotator "RC"]
[PlyCount "73"]
[EventDate "2019.11.29"]
[EventType "swiss"]
[EventCountry "ENG"]
[SourceTitle "playchess.com"]
[Source "ChessBase"]
[SourceQuality "1"]
[TimeControl "40/5400+30:1800+30"]

1. d4 {[%emt 0:00:00]} Nf6 {[%emt 0:00:01]} 2. c4 {[%emt 0:00:00]} g6 {[%emt 0:00:06]} 3. Nc3 {[%emt 0:00:00]} Bg7 {[%emt 0:00:07]} 4. e4 {[%emt 0:00:00]} d6 {[%emt 0:00:44]} 5. Be2 {[%emt 0:00:00]} O-O {[%emt 0:02:06]} 6. Bg5 {[%emt 0:00:02]} c6 {[%emt 0:01:39]} 7. Qd2 {[%emt 0:00:23]} a6 {[%emt 0:04:10]} 8. Rd1 {[%emt 0:00:36]} b5 {[%emt 0:03:39]} 9. a3 {[%emt 0:00:26]} bxc4 {[%emt 0:02:59]} 10. Bxc4 {[%emt 0:00:19]} Nbd7 {[%emt 0:02:03]} 11. Nge2 {[%emt 0:12:16]} d5 {[%emt 0:04:07]} 12. Bd3 {[%emt 0:02:54]} dxe4 {[%emt 0:01:34]} 13. Nxe4 {[%emt 0:01:23]} a5 {[%emt 0:00:17]} 14. O-O {[%emt 0:10:35]} Qb6 {[%emt 0:00:53]} 15. N4c3 {[%emt 0:13:43]} Ba6 {[%emt 0:03:11]} 16. Na4 {[%emt 0:07:25]} Qb7 {[%emt 0:10:57]} 17. Nec3 {[%emt 0:08:28]} Bxd3 {[%emt 0:03:52]} 18. Qxd3 {[%emt 0:00:04]} Rfe8 {[%emt 0:02:00]} 19. Rfe1 {[%emt 0:02:19]} Rac8 {[%emt 0:02:33]} 20. d5 {[%emt 0:03:12]} cxd5 {[%emt 0:06:46]} 21. Nxd5 {[%emt 0:00:13]} e6 {[%emt 0:01:12]} 22. Ndc3 {[%emt 0:05:39]} h6 {[%emt 0:05:52]} 23. Be3 {[%emt 0:04:57]} Rc6 {[%emt 0:05:01]} 24. Bd4 {[%emt 0:03:54]} Rb8 {[%emt 0:01:56]} 25. Qf3 {[%emt 0:06:47]} Rc4 {[%emt 0:02:52]} 26. Qxb7 {[%emt 0:01:09]} Rxb7 {[%emt 0:00:07]} 27. h3 {[%emt 0:06:38]} Nd5 {[%emt 0:02:18]} 28. Bxg7 {[%emt 0:00:14]} Kxg7 {[%emt 0:04:17]} 29. Nxd5 {[%emt 0:10:52]} exd5 {[%emt 0:06:03]} 30. Nc3 {[%emt 0:02:51]} Rxb2 {[%emt 0:02:24]} 31. Nxd5 {[%emt 0:01:42]} Nc5 {[%emt 0:01:38]} 32. Re3 {[%emt 0:04:50]} a4 {[%emt 0:03:18]} 33. Rde1 {[%emt 0:03:24]} Rcc2 {[%emt 0:00:36]} 34. Rf3 {[%emt 0:00:00]} Ne6 {[%emt 0:05:48]} 35. Rd1 {[%emt 0:00:00]} Ra2 {[%emt 0:01:02]} 36. Nb4 {[%emt 0:00:00]} Rd2 {[%emt 0:00:07]} 37. Re1 {[%emt 0:03:09]} 0-1

[Event "11th LCC FIDE Open 2019"]
[Site "London"]
[Date "2019.12.05"]
[Round "9.13"]
[White "Pert, Richard G"]
[Black "Villiers, Thomas"]
[Result "1-0"]
[ECO "A45"]
[WhiteElo "2436"]
[BlackElo "2145"]
[Annotator "NA"]
[PlyCount "47"]
[EventDate "2019.11.29"]
[EventType "swiss"]
[EventCountry "ENG"]
[SourceTitle "playchess.com"]
[Source "ChessBase"]
[SourceQuality "1"]
[TimeControl "40/5400+30:1800+30"]

1. d4 {[%emt 0:00:00]} Nf6 {[%emt 0:00:00]} 2. Bg5 {[%emt 0:00:00]} e6 {[%emt 0:00:00]} 3. e4 {[%emt 0:00:24]} h6 {[%emt 0:00:00]} 4. Bxf6 {[%emt 0:00:04]} Qxf6 {[%emt 0:00:00]} 5. c3 {[%emt 0:00:09]} d6 {[%emt 0:00:02]} 6. Bd3 {[%emt 0:00:10]} g6 {[%emt 0:00:06]} 7. Ne2 {[%emt 0:00:06]} Bg7 {[%emt 0:00:06]} 8. O-O {[%emt 0:00:10]} e5 {[%emt 0:00:17]} 9. f4 {[%emt 0:00:19]} Qe7 {[%emt 0:00:07]} 10. f5 {[%emt 0:00:51]} gxf5 {[%emt 0:01:07]} 11. exf5 {[%emt 0:00:49]} e4 {[%emt 0:00:04]} 12. Bc2 {[%emt 0:01:53]} d5 {[%emt 0:00:31]} 13. c4 {[%emt 0:03:17]} c5 {[%emt 0:06:05]} 14. Nbc3 {[%emt 0:05:21]} Nd7 {[%emt 0:02:23]} 15. Nxd5 {[%emt 0:01:38]} Qd6 {[%emt 0:00:02]} 16. Kh1 {[%emt 0:21:24]} O-O {[%emt 0:06:00]} 17. Ng3 {[%emt 0:05:28]} Bxd4 {[%emt 0:00:07]} 18. Nxe4 {[%emt 0:01:03]} Qe5 {[%emt 0:00:14]} 19. Qh5 {[%emt 0:03:47]} a5 {[%emt 0:03:24]} 20. Qxh6 {[%emt 0:02:24]} Ra6 {[%emt 0:00:05]} 21. f6 {[%emt 0:00:54]} Rxf6 {[%emt 0:00:11]} 22. Nexf6+ {[%emt 0:00:13]} Nxf6 {[%emt 0:00:05]} 23. Nxf6+ {[%emt 0:00:12]} Qxf6 {[%emt 0:00:03]} 24. Qh7# {[%emt 0:00:17]} 1-0

[Event "11th LCC FIDE Open 2019"]
[Site "London"]
[Date "2019.12.05"]
[Round "9.14"]
[White "Dong, Bao Nghia"]
[Black "Clarke, Brandon Gi"]
[Result "0-1"]
[ECO "A48"]
[WhiteElo "2217"]
[BlackElo "2431"]
[Annotator "NA"]
[PlyCount "98"]
[EventDate "2019.11.29"]
[EventType "swiss"]
[EventCountry "ENG"]
[SourceTitle "playchess.com"]
[Source "ChessBase"]
[SourceQuality "1"]
[TimeControl "40/5400+30:1800+30"]

1. d4 {[%emt 0:11:34]} Nf6 {[%emt 0:00:00]} 2. Nf3 {[%emt 0:00:17]} g6 {[%emt 0:00:00]} 3. h3 {[%emt 0:00:07]} Bg7 {[%emt 0:00:00]} 4. Bf4 {[%emt 0:00:07]} O-O {[%emt 0:00:00]} 5. e3 {[%emt 0:00:05]} c5 {[%emt 0:00:07]} 6. c3 {[%emt 0:00:05]} d6 {[%emt 0:00:08]} 7. Nbd2 {[%emt 0:00:05]} Nc6 {[%emt 0:00:35]} 8. Bc4 {[%emt 0:00:07]} cxd4 {[%emt 0:00:33]} 9. exd4 {[%emt 0:00:29]} e5 {[%emt 0:00:20]} 10. dxe5 {[%emt 0:00:12]} dxe5 {[%emt 0:00:08]} 11. Be3 {[%emt 0:00:04]} e4 {[%emt 0:01:03]} 12. Nd4 {[%emt 0:04:53]} Ne5 {[%emt 0:00:23]} 13. Qb3 {[%emt 0:00:13]} Nxc4 {[%emt 0:01:02]} 14. Nxc4 {[%emt 0:00:08]} Nd5 {[%emt 0:02:33]} 15. Rd1 {[%emt 0:00:21]} Nxe3 {[%emt 0:01:51]} 16. Nxe3 {[%emt 0:00:04]} Qg5 {[%emt 0:01:33]} 17. h4 {[%emt 0:00:26]} Qc5 {[%emt 0:08:06]} 18. h5 {[%emt 0:03:39]} Rd8 {[%emt 0:03:05]} 19. hxg6 {[%emt 0:01:20]} hxg6 {[%emt 0:00:06]} 20. Qc4 {[%emt 0:00:37]} Qxc4 {[%emt 0:00:59]} 21. Nxc4 {[%emt 0:00:06]} Bg4 {[%emt 0:03:45]} 22. f3 {[%emt 0:03:02]} exf3 {[%emt 0:02:02]} 23. gxf3 {[%emt 0:00:16]} Rxd4 {[%emt 0:02:34]} 24. Rxd4 {[%emt 0:00:24]} Bxf3 {[%emt 0:00:43]} 25. Rf1 {[%emt 0:00:23]} Bxd4 {[%emt 0:04:56]} 26. Rxf3 {[%emt 0:00:10]} Bc5 {[%emt 0:01:08]} 27. b4 {[%emt 0:00:29]} Bf8 {[%emt 0:02:17]} 28. Kd2 {[%emt 0:02:33]} Rd8+ {[%emt 0:04:18]} 29. Kc2 {[%emt 0:01:02]} f5 {[%emt 0:02:20]} 30. Rg3 {[%emt 0:01:13]} Kg7 {[%emt 0:00:41]} 31. Ne5 {[%emt 0:01:25]} Rd6 {[%emt 0:00:40]} 32. c4 {[%emt 0:00:26]} Re6 {[%emt 0:00:28]} 33. Nd3 {[%emt 0:00:03]} Re4 {[%emt 0:00:46]} 34. c5 {[%emt 0:00:16]} Kf6 {[%emt 0:00:32]} 35. Kb3 {[%emt 0:00:54]} g5 {[%emt 0:01:44]} 36. b5 {[%emt 0:01:06]} g4 {[%emt 0:00:34]} 37. a4 {[%emt 0:02:44]} Kg5 {[%emt 0:02:25]} 38. Rg1 {[%emt 0:00:26]} Rd4 {[%emt 0:03:15]} 39. Kc3 {[%emt 0:05:38]} Rxa4 {[%emt 0:00:56]} 40. Re1 {[%emt 0:00:41]} Re4 {[%emt 0:00:41]} 41. Rxe4 {[%emt 0:30:15]} fxe4 {[%emt 0:30:05]} 42. c6 {[%emt 0:00:02]} bxc6 {[%emt 0:00:15]} 43. bxc6 {[%emt 0:00:02]} Bd6 {[%emt 0:00:13]} 44. Nc5 {[%emt 0:00:06]} Kf5 {[%emt 0:01:18]} 45. Nb3 {[%emt 0:04:47]} g3 {[%emt 0:01:06]} 46. Nd4+ {[%emt 0:03:05]} Ke5 {[%emt 0:00:02]} 47. Kc4 {[%emt 0:00:27]} g2 {[%emt 0:00:45]} 48. Ne2 {[%emt 0:00:05]} Bc7 {[%emt 0:01:08]} 49. Kc5 {[%emt 0:01:00]} Bb6+ {[%emt 0:00:10] Kd4+} 0-1

[Event "11th LCC FIDE Open 2019"]
[Site "London"]
[Date "2019.12.05"]
[Round "9.15"]
[White "McDonald, Neil"]
[Black "Papadiamandis, Elliot"]
[Result "1-0"]
[ECO "B99"]
[WhiteElo "2412"]
[BlackElo "2220"]
[Annotator "NA"]
[PlyCount "73"]
[EventDate "2019.11.29"]
[EventType "swiss"]
[EventCountry "ENG"]
[SourceTitle "playchess.com"]
[Source "ChessBase"]
[SourceQuality "1"]
[TimeControl "40/5400+30:1800+30"]

1. e4 {[%emt 0:00:00]} c5 {[%emt 0:00:00]} 2. Nf3 {[%emt 0:00:00]} d6 {[%emt 0:00:00]} 3. d4 {[%emt 0:00:00]} cxd4 {[%emt 0:00:04]} 4. Nxd4 {[%emt 0:00:00]} Nf6 {[%emt 0:00:11]} 5. Nc3 {[%emt 0:00:00]} a6 {[%emt 0:00:07]} 6. Bg5 {[%emt 0:00:22]} e6 {[%emt 0:00:22]} 7. f4 {[%emt 0:00:10]} Be7 {[%emt 0:00:05]} 8. Qf3 {[%emt 0:00:11]} Nbd7 {[%emt 0:00:10]} 9. O-O-O {[%emt 0:00:30]} Qc7 {[%emt 0:00:08]} 10. g4 {[%emt 0:00:24]} b5 {[%emt 0:00:13]} 11. Bxf6 {[%emt 0:00:22]} Nxf6 {[%emt 0:00:08]} 12. g5 {[%emt 0:00:32]} Nd7 {[%emt 0:00:14]} 13. h4 {[%emt 0:00:30]} O-O {[%emt 0:02:42]} 14. a3 {[%emt 0:06:12]} Bb7 {[%emt 0:02:59]} 15. h5 {[%emt 0:05:03]} Nc5 {[%emt 0:05:32]} 16. b4 {[%emt 0:09:16]} Nd7 {[%emt 0:09:41]} 17. Rh3 {[%emt 0:08:51]} Nb6 {[%emt 0:04:31]} 18. Rg3 {[%emt 0:04:21]} Rac8 {[%emt 0:02:25]} 19. Rd3 {[%emt 0:01:41]} Rfe8 {[%emt 0:14:04]} 20. Bh3 {[%emt 0:04:52]} Nc4 {[%emt 0:08:07]} 21. Qf2 {[%emt 0:23:12]} Qd8 {[%emt 0:14:44]} 22. h6 {[%emt 0:05:05]} g6 {[%emt 0:03:25]} 23. Nxe6 {[%emt 0:02:22]} fxe6 {[%emt 0:00:21]} 24. Bxe6+ {[%emt 0:00:18]} Kf8 {[%emt 0:00:45]} 25. Bxc8 {[%emt 0:03:38]} Qxc8 {[%emt 0:01:51]} 26. Qd4 {[%emt 0:01:19]} Rd8 {[%emt 0:00:45]} 27. Qh8+ {[%emt 0:01:15]} Kf7 {[%emt 0:00:02]} 28. Qxh7+ {[%emt 0:00:26]} Ke8 {[%emt 0:00:53]} 29. Qxg6+ {[%emt 0:00:50]} Kd7 {[%emt 0:00:12]} 30. Qf5+ {[%emt 0:04:10]} Ke8 {[%emt 0:00:43]} 31. h7 {[%emt 0:03:35]} Qxf5 {[%emt 0:00:29]} 32. exf5 {[%emt 0:00:09]} Kf7 {[%emt 0:00:38]} 33. f6 {[%emt 0:00:36]} Kg6 {[%emt 0:01:56]} 34. fxe7 {[%emt 0:01:32]} Rh8 {[%emt 0:00:05]} 35. Nd5 {[%emt 0:02:35]} Bxd5 {[%emt 0:00:21]} 36. Rxd5 {[%emt 0:00:12]} Kf7 {[%emt 0:00:07]} 37. g6+ {[%emt 0:00:38]} 1-0

[Event "11th LCC FIDE Open 2019"]
[Site "London"]
[Date "2019.12.05"]
[Round "9.18"]
[White "Wu, Li"]
[Black "Ogunshola, Olugbemiga (Ben)"]
[Result "1-0"]
[ECO "A68"]
[WhiteElo "2293"]
[BlackElo "2169"]
[Annotator "NA"]
[PlyCount "59"]
[EventDate "2019.11.29"]
[EventType "swiss"]
[EventCountry "ENG"]
[SourceTitle "playchess.com"]
[Source "ChessBase"]
[SourceQuality "1"]
[TimeControl "40/5400+30:1800+30"]

1. d4 {[%emt 1:46:39]} Nf6 {[%emt 0:01:52]} 2. c4 {[%emt 0:00:24]} g6 {[%emt 0:02:13]} 3. Nc3 {[%emt 0:00:23]} Bg7 {[%emt 0:00:02]} 4. e4 {[%emt 0:00:06]} d6 {[%emt 0:00:08]} 5. f4 {[%emt 0:01:40]} O-O {[%emt 0:00:59]} 6. Nf3 {[%emt 0:00:03]} c5 {[%emt 0:00:09]} 7. d5 {[%emt 0:00:04]} e6 {[%emt 0:00:08]} 8. Be2 {[%emt 0:00:19]} exd5 {[%emt 0:01:48]} 9. cxd5 {[%emt 0:00:59]} Bg4 {[%emt 0:00:54]} 10. O-O {[%emt 0:01:23]} a6 {[%emt 0:00:48]} 11. e5 {[%emt 0:08:55]} dxe5 {[%emt 0:11:30]} 12. fxe5 {[%emt 0:00:21]} Nfd7 {[%emt 0:00:37]} 13. e6 {[%emt 0:06:38]} fxe6 {[%emt 0:11:44]} 14. dxe6 {[%emt 0:06:11]} Nb6 {[%emt 0:09:32]} 15. Qb3 {[%emt 0:06:49]} c4 {[%emt 0:00:52]} 16. Bxc4 {[%emt 0:01:47]} Nxc4 {[%emt 0:00:09]} 17. Qxc4 {[%emt 0:09:06]} Qb6+ {[%emt 0:01:16]} 18. Kh1 {[%emt 0:00:04]} Qxe6 {[%emt 0:01:48]} 19. Nd5 {[%emt 0:16:31]} Nc6 {[%emt 0:02:29]} 20. Re1 {[%emt 0:06:32]} Qf7 {[%emt 0:22:49]} 21. Ng5 {[%emt 0:06:37]} b5 {[%emt 0:05:00]} 22. Nxf7 {[%emt 0:00:13]} bxc4 {[%emt 0:01:07]} 23. Nh6+ {[%emt 0:00:04]} Bxh6 {[%emt 0:00:30]} 24. Bxh6 {[%emt 0:00:04]} Rf7 {[%emt 0:05:54]} 25. Rac1 {[%emt 0:08:53]} Rd8 {[%emt 0:06:26]} 26. h3 {[%emt 0:00:08]} Bf5 {[%emt 0:07:45]} 27. Rxc4 {[%emt 0:00:17]} Nb8 {[%emt 0:03:42]} 28. Rd4 {[%emt 0:01:28]} Bd7 {[%emt 0:01:01]} 29. Nb6 {[%emt 0:02:15]} Re8 {[%emt 0:00:16]} 30. Rxe8+ {[%emt 0:00:26]} 1-0